fUST/lending_fUST_20260109
["ID","MTS","AMOUNT","RATE_DAILY","PERIOD"]
[401107990,1767934252282,-498.400382,0.00024142,2]
[401107991,1767934252292,-498.400382,0.00024142,2]
[401107992,1767934252302,-498.400382,0.00024142,2]
[401107993,1767934252312,-313.573847,0.00024142,2]
[401107994,1767934252322,-313.573847,0.00024142,2]
[401107995,1767934252331,-313.573847,0.00024142,2]
[401107996,1767934252341,-313.573847,0.00024142,2]
[401107997,1767934252350,-221.941164,0.00024142,2]
[401107998,1767934252360,-221.941164,0.00024142,2]
[401107999,1767934252370,-979.022557,0.00024142,2]
[401108000,1767934252379,-221.941164,0.00024142,2]
[401108001,1767934252388,-979.022557,0.00024142,2]
[401108002,1767934252398,-419.868976,0.00024142,2]
[401108003,1767934252408,-221.941164,0.00024142,2]
[401108004,1767934252417,-979.022557,0.00024142,2]
[401108005,1767934252426,-419.868976,0.00024142,2]
[401108006,1767934252436,-979.022557,0.00024142,2]
[401108007,1767934252445,-419.868976,0.00024142,2]
[401108008,1767934252454,-419.868976,0.00024142,2]
[401108009,1767934252464,-151.0,0.00024142,2]
[401108010,1767934252473,-151.0,0.00024142,2]
[401108011,1767934252482,-151.0,0.00024142,2]
[401108012,1767934252493,-189.3332,0.00024142,2]
[401108013,1767934252503,-607.260341,0.00024142,2]
[401108014,1767934252512,-607.260341,0.00024142,2]
[401108015,1767934252523,-607.260341,0.00024142,2]
[401108016,1767934252532,-607.260341,0.00024142,2]
[401108017,1767934252542,-1298.0,0.00024173,2]
[401108018,1767934252551,-168.0,0.00024192,12]
[401108019,1767934252562,-50264.40458466,0.000242,2]
[401108020,1767934252572,-479.61,0.000242,2]
[401108021,1767934252582,-151.0,0.000242,2]
[401108022,1767934252591,-163.657676,0.000242,2]
[401108023,1767934252601,-163.657676,0.000242,2]
[401108024,1767934252611,-163.657676,0.000242,2]
[401108025,1767934252620,-163.657676,0.000242,2]
[401108026,1767934252630,-151.0,0.000242,2]
[401108027,1767934252640,-350.1,0.00024205,2]
[401108028,1767934252650,-1298.0,0.0002425,2]
[401108029,1767934252660,-280.82790028,0.00024286,32]
[401108030,1767934252669,-1298.0,0.00024288,2]
[401108031,1767934252679,-1366.0,0.00024301,2]
[401108032,1767934252689,-2146.0,0.00024301,2]
[401108033,1767934252699,-628.0,0.00024301,2]
[401108034,1767934252709,-417.0,0.00024301,2]
[401108035,1767934252718,-714.0,0.00024301,2]
[401108036,1767934252728,-153.033862,0.00024325,2]
[401108037,1767934252738,-1298.0,0.00024325,2]
[401108038,1767934252747,-1300.0,0.00024352,7]
[401108039,1767934252758,-1298.0,0.00024353,2]
[401108040,1767934252768,-9388.79509089,0.00024377,2]
[401108041,1767934252777,-3715.4218359,0.00024389,2]
[401108042,1767934252787,-1391.37,0.000244,14]
[401108043,1767934252797,-1298.0,0.0002442,2]
[401108044,1767934252806,-1298.0,0.00024439,2]
[401108045,1767934252815,-180.068426,0.00024449,2]
[401108046,1767934252825,-574.12855637,0.00024467,2]
[401108047,1767934252835,-2773.56790519,0.00024467,2]
[401108048,1767934252845,-160.0,0.0002447,3]
[401108049,1767934252855,-467.25,0.000245,7]
[401108050,1767934252865,-280.82790028,0.00024571,48]
[401108051,1767934252877,-378.37,0.000246,3]
[401108052,1767934252887,-16429.49,0.000246,2]
[401108053,1767934252896,-151.0,0.00024635,2]
[401108054,1767934252905,-166.111995,0.00024635,2]
[401108055,1767934252915,-166.111995,0.00024635,2]
[401108056,1767934252925,-166.111995,0.00024635,2]
[401108057,1767934252934,-166.111995,0.00024635,2]
[401108058,1767934252944,-156.963818,0.00024635,2]
[401108059,1767934252953,-513.88250982,0.0002465,2]
[401108060,1767934252963,-156163.16258435,0.0002465,2]
[401108061,1767934252973,-154.31906,0.0002465,2]
[401108062,1767934252982,-380.0,0.00024658,2]
[401108063,1767934252992,-500.0,0.00024658,2]
[401108064,1767934253002,-1298.0,0.0002466,2]
[401108065,1767934253011,-3000.0,0.000247,2]
[401108066,1767934253021,-151.0,0.000247,7]
[401108067,1767934253030,-166.111995,0.000247,7]
[401108068,1767934253040,-166.111995,0.000247,7]
[401108069,1767934253050,-166.111995,0.000247,7]
[401108070,1767934253059,-166.111995,0.000247,7]
[401108071,1767934253068,-151.0,0.000247,7]
[401108072,1767934253078,-498.400382,0.000247,7]
[401108073,1767934253087,-498.400382,0.000247,7]
[401108074,1767934253097,-498.400382,0.000247,7]
[401108075,1767934253107,-498.400372,0.000247,7]
[401108076,1767934253117,-250.0,0.000247,10]
[401108077,1767934253126,-313.573847,0.000247,7]
[401108078,1767934253135,-313.573847,0.000247,7]
[401108079,1767934253144,-313.573847,0.000247,7]
[401108080,1767934253154,-313.573839,0.000247,7]
[401108081,1767934253163,-221.941164,0.000247,7]
[401108082,1767934253172,-221.941164,0.000247,7]
[401108083,1767934253182,-979.022557,0.000247,7]
[401108084,1767934253192,-221.941164,0.000247,7]
[401108085,1767934253202,-979.022557,0.000247,7]
[401108086,1767934253214,-419.868976,0.000247,7]
[401108087,1767934253223,-221.941164,0.000247,7]
[401108088,1767934253233,-979.022557,0.000247,7]
[401108089,1767934253243,-419.868976,0.000247,7]
[401108090,1767934253252,-979.022555,0.000247,7]
[401108091,1767934253262,-419.868976,0.000247,7]
[401108092,1767934253271,-419.868973,0.000247,7]
[401108093,1767934253281,-151.0,0.000247,7]
[401108094,1767934253291,-163.657676,0.000247,7]
[401108095,1767934253301,-163.657676,0.000247,7]
[401108096,1767934253310,-163.657676,0.000247,7]
[401108097,1767934253321,-163.657674,0.000247,7]
[401108098,1767934253331,-151.0,0.000247,7]
[401108099,1767934253340,-151.0,0.000247,7]
[401108100,1767934253350,-151.0,0.000247,7]
[401108101,1767934253360,-107142.88,0.000247,3]
[401108102,1767934253370,-607.260341,0.000247,7]
[401108103,1767934253380,-607.260341,0.000247,7]
[401108104,1767934253390,-607.260341,0.000247,7]
[401108105,1767934253401,-607.260341,0.000247,7]
[401108106,1767934253410,-3000.0,0.0002471,2]
[401108107,1767934253420,-1298.0,0.00024712,2]
[401108108,1767934253430,-3000.0,0.0002472,2]
[401108109,1767934253440,-3000.0,0.0002473,2]
[401108110,1767934253449,-3000.0,0.0002474,2]
[401108111,1767934253459,-151.0,0.0002474,7]
[401108112,1767934253469,-1298.0,0.00024742,2]
[401108113,1767934253478,-1298.0,0.00024748,2]
[401108114,1767934253488,-3000.0,0.0002475,2]
[401108115,1767934253498,-3000.0,0.0002476,2]
[401108116,1767934253508,-3000.0,0.0002477,2]
[401108117,1767934253518,-16824.61855787,0.00024774,2]
[401108118,1767934253528,-3000.0,0.0002478,2]
[401108119,1767934253538,-1298.0,0.00024784,2]
[401108120,1767934253548,-3000.0,0.0002479,2]
[401108121,1767934253557,-500.0,0.00024795,2]
[401108122,1767934253568,-3000.0,0.000248,2]
[401108123,1767934253577,-166.111995,0.000248,7]
[401108124,1767934253587,-166.111995,0.000248,7]
[401108125,1767934253596,-166.111995,0.000248,7]
[401108126,1767934253606,-166.111995,0.000248,7]
[401108127,1767934253616,-250.0,0.000248,10]
[401108128,1767934253625,-163098.31444505,0.000248,2]
[401108129,1767934253802,-790.60290983,0.00016835,2]
[401108130,1767934253932,-14162.99969227,0.000129,2]
[401108131,1767934253943,-500.0,0.00013699,2]
[401108132,1767934253954,-619.37608724,0.00013699,2]
[401108133,1767934253964,-2089.39709017,0.00016835,2]
[401108134,1767934253974,-2880.0,0.00016972,2]
[401108135,1767934253984,-174.61919141,0.00021727,2]
[401108136,1767934253994,-151.0,0.00021918,2]
[401108137,1767934254004,-151.0,0.00021918,2]
[401108138,1767934254014,-266.516446,0.00021918,2]
[401108139,1767934254024,-151.0,0.00023037,2]
[401108140,1767934254034,-181.08010149,0.00023096,2]
[401108141,1767934254043,-151.0,0.000242,2]
[401108142,1767934254053,-323.196063,0.00024465,2]
[401108143,1767934254063,-151.0,0.0002479,7]
[401108144,1767934254073,-66274.57066164,0.000248,2]
[401108145,1767934388507,174.01592445,0.00023375,120]
[401108146,1767934582858,500.0,0.00030136,120]
[401108147,1767934583118,500.0,0.00030136,120]
[401108148,1767934583363,155.602944,0.00030136,120]
[401108149,1767935279721,282.34,4.995e-05,2]
[401108150,1767935280005,282.34,4.995e-05,2]
[401108151,1767935280273,282.34,4.995e-05,2]
[401108180,1767935432401,-582.0,0.000115,2]
[401108181,1767935432411,-307.22647603,0.000115,2]
[401108182,1767935432420,-74.49723591,0.000115,2]
[401108183,1767935432432,-225.50276409,0.000115,2]
[401108184,1767935432442,-243.0,0.00011999,2]
[401108186,1767935432451,-300.0,0.00011999,2]
[401108188,1767935432460,-567.0,0.00011999,2]
[401108190,1767935432469,-31.23319359,0.00012,2]
[401108233,1767935438440,-5088.52379001,0.00012,2]
[401108234,1767935438452,-682.27514044,0.00012,2]
[401108235,1767935438496,-656.14777913,0.00012,2]
[401108236,1767935438508,-25223.03958567,0.00012,2]
[401108237,1767935438517,-290.939,0.00012141,2]
[401108238,1767935438526,-36473.46209749,0.00012385,2]
[401108239,1767935438535,-300.42754026,0.00012385,2]
[401108240,1767935438553,-500.0,0.00012385,2]
[401108241,1767935438565,-500.0,0.00012385,2]
[401108242,1767935438575,-500.0,0.00012385,2]
[401108243,1767935438585,-500.0,0.00012385,2]
[401108244,1767935438594,-500.0,0.00012385,2]
[401108245,1767935438604,-500.0,0.00012385,2]
[401108246,1767935438613,-500.0,0.00012385,2]
[401108247,1767935438624,-162.14254657,0.00012385,2]
[401108248,1767935438633,-500.0,0.00012385,2]
[401108249,1767935438643,-500.0,0.00012385,2]
[401108250,1767935438652,-500.0,0.00012385,2]
[401108251,1767935438662,-341.56987019,0.00012385,2]
[401108252,1767935438672,-500.0,0.00012385,2]
[401108253,1767935438682,-500.0,0.00012385,2]
[401108254,1767935438691,-500.0,0.00012385,2]
[401108255,1767935438700,-500.0,0.00012385,2]
[401108256,1767935438709,-500.0,0.00012385,2]
[401108257,1767935438719,-500.0,0.00012385,2]
[401108258,1767935438728,-500.0,0.00012385,2]
[401108259,1767935438742,-500.0,0.00012385,2]
[401108260,1767935438751,-500.0,0.00012385,2]
[401108261,1767935438760,-500.0,0.00012385,2]
[401108262,1767935438770,-500.0,0.00012385,2]
[401108263,1767935438781,-500.0,0.00012385,2]
[401108264,1767935438790,-500.0,0.00012385,2]
[401108265,1767935438801,-500.0,0.00012385,2]
[401108266,1767935438810,-500.0,0.00012385,2]
[401108267,1767935438821,-500.0,0.00012385,2]
[401108268,1767935438830,-500.0,0.00012385,2]
[401108269,1767935438840,-500.0,0.00012385,2]
[401108270,1767935438849,-500.0,0.00012385,2]
[401108271,1767935438859,-500.0,0.00012385,2]
[401108272,1767935438868,-500.0,0.00012385,2]
[401108273,1767935438878,-500.0,0.00012385,2]
[401108274,1767935438889,-500.0,0.00012385,2]
[401108275,1767935438898,-500.0,0.00012385,2]
[401108276,1767935438908,-500.0,0.00012385,2]
[401108277,1767935438918,-547.07933185,0.00012385,2]
[401108278,1767935438928,-500.0,0.00012385,2]
[401108279,1767935438938,-500.0,0.00012385,2]
[401108280,1767935438948,-500.0,0.00012385,2]
[401108281,1767935438958,-258.53015146,0.00012385,2]
[401108282,1767935438968,-500.0,0.00012385,2]
[401108283,1767935438978,-500.0,0.00012385,2]
[401108284,1767935438987,-500.0,0.00012385,2]
[401108285,1767935438997,-500.0,0.00012385,2]
[401108286,1767935439007,-500.0,0.00012385,2]
[401108287,1767935439018,-500.0,0.00012385,2]
[401108288,1767935439028,-500.0,0.00012385,2]
[401108289,1767935439038,-500.0,0.00012385,2]
[401108290,1767935439048,-500.0,0.00012385,2]
[401108291,1767935439062,-500.0,0.00012385,2]
[401108292,1767935439278,-500.0,0.00012385,2]
[401108293,1767935439289,-500.0,0.00012385,2]
[401108294,1767935439299,-500.0,0.00012385,2]
[401108295,1767935439308,-500.0,0.00012385,2]
[401108296,1767935439318,-500.0,0.00012385,2]
[401108297,1767935439327,-500.0,0.00012385,2]
[401108298,1767935439340,-500.0,0.00012385,2]
[401108299,1767935439349,-500.0,0.00012385,2]
[401108300,1767935439358,-500.0,0.00012385,2]
[401108301,1767935439368,-500.0,0.00012385,2]
[401108302,1767935439377,-500.0,0.00012385,2]
[401108303,1767935439386,-500.0,0.00012385,2]
[401108304,1767935439395,-500.0,0.00012385,2]
[401108305,1767935439405,-500.0,0.00012385,2]
[401108306,1767935439415,-500.0,0.00012385,2]
[401108307,1767935439424,-500.0,0.00012385,2]
[401108308,1767935439433,-500.0,0.00012385,2]
[401108309,1767935439443,-500.0,0.00012385,2]
[401108310,1767935439452,-500.0,0.00012385,2]
[401108311,1767935439461,-500.0,0.00012385,2]
[401108312,1767935439470,-500.0,0.00012385,2]
[401108313,1767935439479,-500.0,0.00012385,2]
[401108314,1767935439488,-500.0,0.00012385,2]
[401108315,1767935439497,-500.0,0.00012385,2]
[401108316,1767935439507,-500.0,0.00012385,2]
[401108317,1767935439517,-500.0,0.00012385,2]
[401108318,1767935439526,-500.0,0.00012385,2]
[401108319,1767935439536,-500.0,0.00012385,2]
[401108320,1767935439546,-500.0,0.00012385,2]
[401108321,1767935439555,-500.0,0.00012385,2]
[401108322,1767935439564,-500.0,0.00012385,2]
[401108323,1767935439573,-500.0,0.00012385,2]
[401108324,1767935439582,-500.0,0.00012385,2]
[401108325,1767935439591,-500.0,0.00012385,2]
[401108326,1767935439600,-500.0,0.00012385,2]
[401108327,1767935439609,-500.0,0.00012385,2]
[401108328,1767935439618,-500.0,0.00012385,2]
[401108329,1767935439627,-500.0,0.00012385,2]
[401108330,1767935439636,-500.0,0.00012385,2]
[401108331,1767935439645,-500.0,0.00012385,2]
[401108332,1767935439654,-500.0,0.00012385,2]
[401108333,1767935439663,-500.0,0.00012385,2]
[401108334,1767935439672,-500.0,0.00012385,2]
[401108335,1767935439683,-500.0,0.00012385,2]
[401108336,1767935439692,-500.0,0.00012385,2]
[401108337,1767935439701,-500.0,0.00012385,2]
[401108338,1767935439710,-500.0,0.00012385,2]
[401108339,1767935439720,-500.0,0.00012385,2]
[401108340,1767935439728,-500.0,0.00012385,2]
[401108341,1767935439742,-500.0,0.00012385,2]
[401108342,1767935439752,-206.36535486,0.00012385,2]
[401108343,1767935439761,-500.0,0.00012385,2]
[401108344,1767935439771,-500.0,0.00012385,2]
[401108345,1767935439780,-500.0,0.00012385,2]
[401108346,1767935439789,-500.0,0.00012385,2]
[401108347,1767935439798,-500.0,0.00012385,2]
[401108348,1767935439807,-500.0,0.00012385,2]
[401108349,1767935439816,-500.0,0.00012385,2]
[401108350,1767935439826,-500.0,0.00012385,2]
[401108351,1767935439835,-500.0,0.00012385,2]
[401108352,1767935439844,-500.0,0.00012385,2]
[401108353,1767935439853,-500.0,0.00012385,2]
[401108354,1767935439863,-500.0,0.00012385,2]
[401108355,1767935439873,-500.0,0.00012385,2]
[401108356,1767935439885,-500.0,0.00012385,2]
[401108357,1767935439894,-500.0,0.00012385,2]
[401108358,1767935439904,-500.0,0.00012385,2]
[401108359,1767935439913,-500.0,0.00012385,2]
[401108360,1767935439923,-500.0,0.00012385,2]
[401108361,1767935439932,-500.0,0.00012385,2]
[401108362,1767935439942,-350.0,0.00012385,2]
[401108363,1767935439952,-500.0,0.00012385,2]
[401108364,1767935439962,-500.0,0.00012385,2]
[401108365,1767935439971,-219.46,0.00012387,2]
[401108366,1767935439981,-500.0,0.00012388,2]
[401108367,1767935439990,-1000000.0,0.00012389,2]
[401108368,1767935440000,-4805.22401032,0.00012562,2]
[401108369,1767935440009,-219.46,0.00012661,2]
[401108370,1767935440019,-504.4978833,0.00012662,2]
[401108371,1767935440028,-300.0,0.00012737,2]
[401108372,1767935440037,-300.0,0.00012737,2]
[401108373,1767935440047,-300.0,0.00012737,2]
[401108374,1767935440057,-300.0,0.00012737,2]
[401108375,1767935440066,-300.0,0.00012737,2]
[401108376,1767935440076,-300.0,0.00012737,2]
[401108377,1767935440085,-300.0,0.00012737,2]
[401108378,1767935440094,-300.0,0.00012737,2]
[401108380,1767935440103,-300.0,0.00012737,2]
[401108381,1767935440113,-300.0,0.00012737,2]
[401108382,1767935440122,-300.0,0.00012737,2]
[401108383,1767935440131,-300.0,0.00012737,2]
[401108384,1767935440140,-300.0,0.00012737,2]
[401108385,1767935440149,-300.0,0.00012737,2]
[401108386,1767935440159,-300.0,0.00012737,2]
[401108388,1767935440168,-600.0,0.00012737,2]
[401108389,1767935440177,-439.85304935,0.00012809,2]
[401108390,1767935440186,-219.47983343,0.00012935,2]
[401108391,1767935440195,-1000.0,0.00012999,2]
[401108392,1767935440204,-7141.237349,0.00013,2]
[401108393,1767935440213,-420.0,0.00013172,2]
[401108394,1767935440223,-500.0,0.00013273,2]
[401108395,1767935440232,-500.0,0.00013273,2]
[401108396,1767935440241,-500.0,0.00013273,2]
[401108397,1767935440250,-500.0,0.00013273,2]
[401108398,1767935440260,-500.0,0.00013273,2]
[401108399,1767935440269,-586.56788338,0.00013273,2]
[401108400,1767935440279,-521.64765143,0.00013273,2]
[401108401,1767935440288,-500.0,0.00013273,2]
[401108402,1767935440297,-500.0,0.00013273,2]
[401108403,1767935440306,-500.0,0.00013273,2]
[401108404,1767935440315,-500.0,0.00013273,2]
[401108405,1767935440324,-500.0,0.00013273,2]
[401108406,1767935440333,-500.0,0.00013273,2]
[401108407,1767935440343,-500.0,0.00013273,2]
[401108408,1767935440352,-500.0,0.00013273,2]
[401108411,1767935440370,-500.0,0.00013273,2]
[401108413,1767935440381,-500.0,0.00013273,2]
[401108414,1767935440391,-500.0,0.00013273,2]
[401108416,1767935440402,-500.0,0.00013273,2]
[401108417,1767935440412,-161.07735711,0.00013273,2]
[401108419,1767935440422,-500.0,0.00013273,2]
[401108421,1767935440432,-500.0,0.00013273,2]
[401108423,1767935440442,-501.21615192,0.00013273,2]
[401108425,1767935440452,-500.0,0.00013273,2]
[401108427,1767935440462,-370.92478125,0.00013273,2]
[401108429,1767935440472,-500.0,0.00013273,2]
[401108431,1767935440482,-500.0,0.00013273,2]
[401108433,1767935440492,-500.0,0.00013273,2]
[401108435,1767935440501,-500.0,0.00013273,2]
[401108437,1767935440510,-500.0,0.00013273,2]
[401108439,1767935440520,-500.0,0.00013273,2]
[401108441,1767935440530,-500.0,0.00013273,2]
[401108443,1767935440540,-218.01361913,0.00013273,2]
[401108445,1767935440549,-283.47346408,0.00013273,2]
[401108447,1767935440559,-500.0,0.00013273,2]
[401108449,1767935440568,-500.0,0.00013273,2]
[401108451,1767935440578,-167.54061229,0.00013273,2]
[401108454,1767935440588,-500.68632472,0.00013273,2]
[401108456,1767935440598,-500.0,0.00013273,2]
[401108458,1767935440607,-161.91206157,0.00013273,2]
[401108460,1767935440617,-500.0,0.00013273,2]
[401108462,1767935440626,-185.5202133,0.00013273,2]
[401108464,1767935440635,-500.0,0.00013273,2]
[401108466,1767935440644,-500.0,0.00013273,2]
[401108468,1767935440654,-500.0,0.00013273,2]
[401108470,1767935440665,-500.0,0.00013273,2]
[401108472,1767935440675,-210.76704572,0.00013273,2]
[401108474,1767935440686,-500.0,0.00013273,2]
[401108476,1767935440695,-500.0,0.00013273,2]
[401108478,1767935440704,-500.0,0.00013273,2]
[401108480,1767935440714,-500.0,0.00013273,2]
[401108482,1767935440724,-500.0,0.00013273,2]
[401108484,1767935440736,-500.0,0.00013273,2]
[401108486,1767935440745,-500.0,0.00013273,2]
[401108488,1767935440755,-500.0,0.00013273,2]
[401108489,1767935440764,-500.0,0.00013273,2]
[401108491,1767935440774,-500.0,0.00013273,2]
[401108493,1767935440783,-500.0,0.00013273,2]
[401108495,1767935440792,-171.66224775,0.00013273,2]
[401108496,1767935440802,-500.0,0.00013273,2]
[401108498,1767935440813,-500.0,0.00013273,2]
[401108500,1767935440822,-500.0,0.00013273,2]
[401108502,1767935440832,-500.0,0.00013273,2]
[401108504,1767935440841,-362.52724172,0.000135,2]
[401108506,1767935440850,-300.0,0.00013673,2]
[401108507,1767935440859,-500.0,0.00013697,2]
[401108508,1767935440869,-1157.59560871,0.00013697,2]
[401108509,1767935440878,-1157.59560871,0.00013697,2]
[401108510,1767935440887,-341.65669223,0.00013697,2]
[401108511,1767935440896,-1157.59560871,0.00013697,2]
[401108512,1767935440905,-1157.59560871,0.00013697,2]
[401108513,1767935440914,-1157.59560871,0.00013697,2]
[401108514,1767935440923,-1157.59560871,0.00013697,2]
[401108515,1767935440932,-1157.59560871,0.00013697,2]
[401108516,1767935440941,-1157.59560871,0.00013697,2]
[401108517,1767935440950,-1157.59560871,0.00013697,2]
[401108518,1767935440959,-1157.59560871,0.00013697,2]
[401108519,1767935440968,-1157.59560871,0.00013697,2]
[401108520,1767935440977,-1157.59560871,0.00013697,2]
[401108521,1767935440986,-1157.59560871,0.00013697,2]
[401108522,1767935440996,-1186.53549893,0.00013697,2]
[401108523,1767935441004,-1186.53549893,0.00013697,2]
[401108524,1767935441014,-1186.53549893,0.00013697,2]
[401108525,1767935441023,-1186.53549893,0.00013697,2]
[401108526,1767935441032,-1186.53549893,0.00013697,2]
[401108527,1767935441041,-1186.53549893,0.00013697,2]
[401108528,1767935441050,-1186.53549893,0.00013697,2]
[401108529,1767935441060,-1186.53549893,0.00013697,2]
[401108530,1767935441069,-1186.53549893,0.00013697,2]
[401108531,1767935441077,-1186.53549893,0.00013697,2]
[401108532,1767935441087,-1186.53549893,0.00013697,2]
[401108533,1767935441096,-1186.53549893,0.00013697,2]
[401108534,1767935441105,-1000.0,0.00013698,2]
[401108535,1767935441114,-500.0,0.00013698,2]
[401108536,1767935441123,-500.0,0.00013698,2]
[401108537,1767935441132,-500.0,0.00013698,2]
[401108538,1767935441141,-500.0,0.00013698,2]
[401108539,1767935441150,-500.0,0.00013698,2]
[401108540,1767935441159,-500.0,0.00013698,2]
[401108541,1767935441168,-500.0,0.00013698,2]
[401108542,1767935441177,-614.46,0.00013698,2]
[401108543,1767935441186,-500.0,0.00013698,2]
[401108544,1767935441195,-500.0,0.00013698,2]
[401108545,1767935441204,-500.0,0.00013698,2]
[401108546,1767935441213,-369.15186997,0.00013698,2]
[401108547,1767935441222,-500.0,0.00013698,2]
[401108548,1767935441231,-500.0,0.00013698,2]
[401108549,1767935441239,-500.0,0.00013698,2]
[401108550,1767935441249,-500.0,0.00013698,2]
[401108551,1767935441257,-500.0,0.00013698,2]
[401108552,1767935441267,-500.0,0.00013698,2]
[401108553,1767935441276,-500.0,0.00013698,2]
[401108554,1767935441285,-500.0,0.00013698,2]
[401108555,1767935441296,-500.0,0.00013698,2]
[401108556,1767935441305,-500.0,0.00013698,2]
[401108557,1767935441315,-500.0,0.00013698,2]
[401108559,1767935441324,-500.0,0.00013698,2]
[401108561,1767935441334,-500.0,0.00013698,2]
[401108563,1767935441343,-500.0,0.00013698,2]
[401108565,1767935441352,-500.0,0.00013698,2]
[401108567,1767935441361,-500.0,0.00013698,2]
[401108568,1767935441370,-500.0,0.00013698,2]
[401108570,1767935441380,-500.0,0.00013698,2]
[401108572,1767935441389,-500.0,0.00013698,2]
[401108574,1767935441399,-500.0,0.00013698,2]
[401108576,1767935441409,-500.0,0.00013698,2]
[401108578,1767935441418,-500.0,0.00013698,2]
[401108580,1767935441427,-400.99242796,0.00013698,2]
[401108582,1767935441437,-567.24493333,0.00013698,2]
[401108584,1767935441446,-500.0,0.00013698,2]
[401108586,1767935441456,-500.0,0.00013698,2]
[401108588,1767935441465,-500.0,0.00013698,2]
[401108590,1767935441480,-500.0,0.00013698,2]
[401108592,1767935441490,-198.9862975,0.00013698,2]
[401108594,1767935441499,-500.0,0.00013698,2]
[401108596,1767935441510,-500.0,0.00013698,2]
[401108598,1767935441520,-500.0,0.00013698,2]
[401108600,1767935441529,-500.0,0.00013698,2]
[401108602,1767935441538,-500.0,0.00013698,2]
[401108604,1767935441548,-500.0,0.00013698,2]
[401108606,1767935441557,-500.0,0.00013698,2]
[401108608,1767935441566,-500.0,0.00013698,2]
[401108610,1767935441575,-500.0,0.00013698,2]
[401108612,1767935441584,-500.0,0.00013698,2]
[401108614,1767935441594,-500.0,0.00013698,2]
[401108616,1767935441603,-500.0,0.00013698,2]
[401108618,1767935441613,-500.0,0.00013698,2]
[401108620,1767935441622,-500.0,0.00013698,2]
[401108622,1767935441631,-500.0,0.00013698,2]
[401108624,1767935441640,-500.0,0.00013698,2]
[401108626,1767935441649,-500.0,0.00013698,2]
[401108628,1767935441658,-504.32192993,0.00013698,2]
[401108630,1767935441667,-500.0,0.00013698,2]
[401108632,1767935441676,-505.77195174,0.00013698,2]
[401108634,1767935441685,-500.0,0.00013698,2]
[401108636,1767935441694,-500.0,0.00013698,2]
[401108638,1767935441703,-491.23402119,0.00013698,2]
[401108640,1767935441712,-500.0,0.00013698,2]
[401108641,1767935441722,-500.0,0.00013698,2]
[401108643,1767935441732,-246.52705052,0.00013698,2]
[401108646,1767935441745,-2760.4,0.00013698,2]
[401108648,1767935441756,-2760.4,0.00013698,2]
[401108649,1767935441765,-2760.4,0.00013698,2]
[401108652,1767935441775,-2760.4,0.00013698,2]
[401108653,1767935441785,-1500.25,0.00013698,2]
[401108655,1767935441794,-2760.4,0.00013698,2]
[401108657,1767935441803,-1500.25,0.00013698,2]
[401108659,1767935441813,-2760.4,0.00013698,2]
[401108661,1767935441822,-1500.25,0.00013698,2]
[401108663,1767935441831,-2760.4,0.00013698,2]
[401108665,1767935441840,-1500.25,0.00013698,2]